bitfinex-derivatives/quotes_SOLF0:USTF0_20260220
["timestamp","ask_amount","ask_price","bid_price","bid_amount"]
[1771592535208,18.3656083,83.429,83.357,18.47942316]
[1771592535399,18.3656083,83.41,83.357,18.47942316]
[1771592536009,18.3656083,83.408,83.357,18.47942316]
[1771592536803,18.3656083,83.389,83.344,18.47942316]
[1771592537001,18.3656083,83.409,83.344,18.47942316]
[1771592538700,9.85395334,83.43,83.349,18.47942316]
[1771592538701,18.3656083,83.407,83.349,18.47942316]
[1771592540407,9.85395334,83.45,83.312,2.08731327]
[1771592540408,18.3656083,83.414,83.37,18.47942316]
[1771592540910,14.69429828,83.47,83.312,2.08731327]
[1771592540911,18.3656083,83.431,83.379,18.47942316]
[1771592541309,18.3656083,83.444,83.394,18.47942316]
[1771592541506,2.99769549,83.443,83.394,18.47942316]
[1771592542106,18.3656083,83.441,83.394,18.47942316]
[1771592542314,2.99769549,83.44,83.394,18.47942316]
[1771592542512,18.3656083,83.438,83.383,10.7983]
[1771592542714,18.3656083,83.436,83.383,10.7983]
[1771592543012,18.3656083,83.434,83.383,10.7983]
[1771592543214,10.7922,83.431,83.379,18.47942316]
[1771592543408,18.3656083,83.429,83.379,18.47942316]
[1771592543908,21.36330379,83.429,83.379,18.47942316]
[1771592544110,18.3656083,83.429,83.379,18.47942316]
[1771592544305,21.36330379,83.429,83.379,18.47942316]
[1771592544505,18.3656083,83.429,83.379,18.47942316]
[1771592544812,18.3656083,83.428,83.38,10.7987]
[1771592545013,10.7929,83.425,83.379,18.47942316]
[1771592545307,21.36330379,83.424,83.379,18.47942316]
[1771592545611,18.3656083,83.418,83.366,18.47942316]
[1771592545810,18.3656083,83.418,83.341,18.47942316]
[1771592546107,9.85395334,83.43,83.341,18.47942316]
[1771592546108,18.3656083,83.416,83.341,18.47942316]
[1771592546813,18.3656083,83.408,83.362,10.8011]
[1771592547011,18.3656083,83.408,83.354,18.47942316]
[1771592547215,18.3656083,83.406,83.348,10.8029]
[1771592547414,18.3656083,83.404,83.348,10.8029]
[1771592547606,18.3656083,83.404,83.34,18.47942316]
[1771592547812,9.85395334,83.41,83.34,18.47942316]
[1771592547813,18.3656083,83.402,83.34,18.47942316]
[1771592548315,11.98,83.472,83.34,18.47942316]
[1771592548316,18.3656083,83.421,83.357,18.47942316]
[1771592548515,18.3656083,83.419,83.357,18.47942316]
[1771592548812,18.3656083,83.416,83.36,10.8013]
[1771592549014,18.3656083,83.414,83.357,18.47942316]
[1771592549210,18.3656083,83.414,83.309,35.87]
[1771592549211,18.3656083,83.409,83.342,18.47942316]
[1771592549410,18.3656083,83.397,83.344,10.8034]
[1771592549610,18.3656083,83.397,83.342,18.47942316]
[1771592549611,18.3656083,83.395,83.342,18.47942316]
[1771592549807,9.85395334,83.41,83.334,35.63025787]
[1771592549808,18.3656083,83.393,83.334,35.63025787]
[1771592550008,3.68514612,83.38,83.335,18.47942316]
[1771592550317,3.68514612,83.39,83.344,18.47942316]
[1771592550915,3.68514612,83.39,83.34,3.68514612]
[1771592550916,3.68514612,83.39,83.355,18.47942316]
[1771592551416,14.69429828,83.445,83.355,18.47942316]
[1771592551417,3.68514612,83.41,83.355,18.47942316]
[1771592551620,3.68514612,83.41,83.334,17.15083471]
[1771592551621,3.68514612,83.41,83.361,18.47942316]
[1771592552519,3.68514612,83.41,83.363,10.8009]
[1771592552811,3.68514612,83.41,83.364,18.47942316]
[1771592553708,3.68514612,83.41,83.367,10.8004]
[1771592553912,3.68514612,83.41,83.368,18.47942316]
[1771592555007,3.68514612,83.41,83.371,10.7999]
[1771592555408,3.68514612,83.41,83.372,18.47942316]
[1771592555818,18.3656083,83.415,83.372,18.47942316]
[1771592556214,3.68514612,83.41,83.372,18.47942316]
[1771592559319,3.68514612,83.4,83.372,18.47942316]
[1771592559912,19.20139601,83.412,83.372,18.47942316]
[1771592560120,22.19940488,83.411,83.364,19.36541026]
[1771592560422,19.20139601,83.411,83.364,19.36541026]
[1771592560810,9.17489413,83.418,83.364,19.36541026]
[1771592561025,12.17962399,83.417,83.364,19.36541026]
[1771592561220,2.99800507,83.416,83.364,19.36541026]
[1771592561524,2.99800507,83.415,83.364,19.36541026]
[1771592561725,19.20139601,83.413,83.377,19.36541026]
[1771592562025,22.19940108,83.412,83.335,19.36541026]
[1771592562213,2.99800507,83.411,83.335,19.36541026]
[1771592562523,2.99800507,83.41,83.335,19.36541026]
[1771592562723,2.99800507,83.409,83.335,19.36541026]
[1771592562926,19.20139601,83.412,83.335,19.36541026]
[1771592563130,19.20139601,83.409,83.335,19.36541026]
[1771592563329,19.20139601,83.389,83.335,19.36541026]
[1771592563524,19.20139601,83.387,83.338,10.8041]
[1771592563729,2.99800809,83.386,83.339,19.36541026]
[1771592563926,2.99800809,83.385,83.339,19.36541026]
[1771592564128,2.99800809,83.384,83.339,19.36541026]
[1771592564324,2.99800809,83.383,83.339,19.36541026]
[1771592564528,2.99800809,83.382,83.339,19.36541026]
[1771592564729,19.20139601,83.387,83.341,19.36541026]
[1771592564924,2.99896293,83.386,83.341,19.36541026]
[1771592565131,9.18739513,83.399,83.341,19.36541026]
[1771592565428,11.025301,83.417,83.334,17.15083471]
[1771592565429,2.99866824,83.398,83.347,19.36541026]
[1771592565733,19.20139601,83.414,83.347,19.36541026]
[1771592566036,2.99816541,83.413,83.368,30.16561026]
[1771592566234,2.99816541,83.412,83.368,30.16561026]
[1771592566429,31.38633755,83.411,83.368,19.36541026]
[1771592566630,19.20139601,83.409,83.368,19.36541026]
[1771592566826,12.18494154,83.408,83.368,19.36541026]
[1771592567031,2.99816541,83.407,83.368,19.36541026]
[1771592567235,2.99816541,83.406,83.368,19.36541026]
[1771592567432,2.99816541,83.405,83.368,19.36541026]
[1771592567628,2.99816541,83.404,83.368,19.36541026]
[1771592567833,19.20139601,83.409,83.368,19.36541026]
[1771592568036,2.9981217,83.408,83.368,19.36541026]
[1771592568236,19.20139601,83.409,83.368,19.36541026]
[1771592568237,12.18845153,83.407,83.368,19.36541026]
[1771592568440,12.18954138,83.406,83.368,19.36541026]
[1771592568734,12.18954138,83.405,83.368,19.36541026]
[1771592568934,12.18954138,83.404,83.368,19.36541026]
[1771592569131,2.9981217,83.403,83.368,19.36541026]
[1771592569332,2.9981217,83.402,83.368,19.36541026]
[1771592569533,19.20139601,83.421,83.368,19.36541026]
[1771592569732,31.39266257,83.42,83.368,19.36541026]
[1771592569933,31.39266257,83.419,83.368,19.36541026]
[1771592570128,2.99804017,83.418,83.381,19.36541026]
[1771592570332,2.99804017,83.418,83.334,17.15083471]
[1771592570333,19.20139601,83.416,83.364,19.36541026]
[1771592570524,19.20139601,83.414,83.366,30.16591026]
[1771592570727,19.20139601,83.428,83.366,19.36541026]
[1771592570933,12.12439359,83.427,83.366,19.36541026]
[1771592571134,12.12439359,83.426,83.382,19.36541026]
[1771592571333,12.12439359,83.425,83.382,19.36541026]
[1771592571528,12.12439359,83.424,83.382,19.36541026]
[1771592571736,12.12439359,83.423,83.382,19.36541026]
[1771592571927,12.12439359,83.422,83.382,19.36541026]
[1771592572132,2.9977291,83.421,83.382,19.36541026]
[1771592572334,12.12698923,83.42,83.382,19.36541026]
[1771592572637,12.12698923,83.419,83.382,19.36541026]
[1771592572834,12.12698923,83.418,83.382,19.36541026]
[1771592573030,12.12698923,83.417,83.382,19.36541026]
[1771592573232,12.12698923,83.416,83.382,19.36541026]
[1771592573531,12.12698923,83.415,83.382,19.36541026]
[1771592573728,12.12698923,83.414,83.382,19.36541026]
[1771592573932,12.12698923,83.413,83.382,19.36541026]
[1771592574230,12.13400447,83.412,83.382,19.36541026]
[1771592574436,10.793,83.425,83.382,19.36541026]
[1771592574437,2.9977291,83.411,83.382,19.36541026]
[1771592574633,10.793,83.425,83.382,19.36541026]
[1771592574634,2.9977291,83.41,83.382,19.36541026]
[1771592574940,2.9977291,83.409,83.382,19.36541026]
[1771592575138,2.9977291,83.408,83.382,19.36541026]
[1771592575439,2.9977291,83.407,83.382,19.36541026]
[1771592575639,9.13957516,83.424,83.382,19.36541026]
[1771592575839,12.13733181,83.423,83.382,19.36541026]
[1771592576042,10.7938,83.419,83.382,19.36541026]
[1771592576229,19.20139601,83.428,83.382,19.36541026]
[1771592576230,12.13733181,83.418,83.382,19.36541026]
[1771592576436,12.13733181,83.417,83.382,19.36541026]
[1771592576630,12.13733181,83.416,83.382,19.36541026]
[1771592576836,12.13733181,83.415,83.382,19.36541026]
[1771592577031,12.13733181,83.414,83.382,19.36541026]
[1771592577238,12.13733181,83.413,83.382,19.36541026]
[1771592577440,12.13733181,83.412,83.382,19.36541026]
[1771592577634,30.22669701,83.428,83.382,19.36541026]
[1771592577635,12.13733181,83.411,83.382,19.36541026]
[1771592577840,12.13733181,83.41,83.382,19.36541026]
[1771592578038,19.20139601,83.408,83.366,19.36541026]
[1771592578345,12.13733181,83.407,83.366,19.36541026]
[1771592578555,12.13733181,83.406,83.366,19.36541026]
[1771592578743,12.13733181,83.405,83.366,19.36541026]
[1771592578939,12.13733181,83.404,83.366,19.36541026]
[1771592579140,12.13733181,83.403,83.366,19.36541026]
[1771592579345,12.13733181,83.402,83.366,19.36541026]
[1771592579646,2.99775665,83.401,83.366,19.36541026]
[1771592579847,19.20139601,83.408,83.366,19.36541026]
[1771592580049,12.15019603,83.407,83.368,19.36541026]
[1771592580249,2.9980374,83.406,83.368,19.36541026]
[1771592580451,2.9980374,83.405,83.368,19.36541026]
[1771592580748,2.9980374,83.404,83.368,19.36541026]
[1771592580949,2.9980374,83.403,83.368,19.36541026]
[1771592581149,2.9980374,83.402,83.368,19.36541026]
[1771592581351,3.68217091,83.41,83.368,19.36541026]
[1771592581550,12.15001545,83.409,83.368,19.36541026]
[1771592581848,12.15001545,83.408,83.368,19.36541026]
[1771592582047,12.15001545,83.407,83.368,19.36541026]
[1771592582254,3.68217091,83.4,83.368,19.36541026]
[1771592582453,3.68217091,83.4,83.357,10.8017]
[1771592582454,31.35004791,83.399,83.357,10.8017]
[1771592582754,3.68217091,83.39,83.357,10.8017]
[1771592583149,3.68217091,83.37,83.334,17.15083471]
[1771592583342,10.7979,83.387,83.335,19.36541026]
[1771592583549,3.68217091,83.38,83.335,19.36541026]
[1771592583744,3.68217091,83.37,83.335,19.36541026]
[1771592584146,3.68217091,83.35,83.334,9.58283471]
[1771592584455,3.68217091,83.34,83.305,19.36541026]
[1771592584952,3.68217091,83.32,83.287,30.17611026]
[1771592585252,3.68217091,83.3,83.262,2.08819003]
[1771592585451,14.69429828,83.377,83.2,168.343]
[1771592585452,9.60450408,83.269,83.2,19.22344652]
[1771592585653,3.68217091,83.26,83.2,22.90561743]
[1771592585853,9.61066369,83.259,83.203,10.8217]
[1771592586054,9.61066369,83.259,83.192,2.09047303]
[1771592586055,9.45293615,83.256,83.193,19.22344652]
[1771592586254,3.00075702,83.255,83.193,19.22344652]
[1771592586454,11.07644488,83.302,83.127,184.78082604]
[1771592586455,9.45293615,83.239,83.172,21.3142147]
[1771592586650,9.89921074,83.28,83.172,21.3142147]
[1771592586651,9.45293615,83.262,83.181,19.22344652]
[1771592586850,9.45293615,83.279,83.201,19.22344652]
[1771592587053,9.45910848,83.277,83.201,19.22344652]
[1771592587254,3.00296422,83.278,83.201,19.22344652]
[1771592587255,9.49462503,83.275,83.201,19.22344652]
[1771592587454,9.49462503,83.269,83.19,18.18036488]
[1771592587749,9.49462503,83.269,83.191,18.18036488]
[1771592588350,9.49462503,83.269,83.215,18.18036488]
[1771592589057,9.49462503,83.269,83.218,10.8197]
[1771592589257,9.49462503,83.269,83.215,18.18036488]
[1771592591353,9.49462503,83.269,83.216,10.82]
[1771592591959,4.17429864,83.285,83.224,18.18036488]
[1771592592957,4.15585133,83.284,83.224,18.18036488]
[1771592594159,5.56416119,83.269,83.176,18.18036488]
[1771592595056,5.54890785,83.267,83.197,10.8225]
[1771592595652,5.54890785,83.267,83.16,9.89921074]
[1771592595653,5.54890785,83.229,83.148,18.18036488]
[1771592596357,5.54890785,83.229,83.163,10.8269]
[1771592597057,5.54890785,83.229,83.142,2.09167926]
[1771592597058,5.54890785,83.229,83.161,18.18036488]
[1771592597760,9.89921074,83.27,83.178,18.18036488]
[1771592598358,10.8132,83.269,83.178,18.18036488]
[1771592598657,9.89921074,83.27,83.178,18.18036488]
[1771592598862,9.89921074,83.27,83.192,10.8231]
[1771592598863,10.8147,83.258,83.192,10.8231]
[1771592599762,9.89921074,83.27,83.192,10.8231]
[1771592599763,10.8133,83.269,83.192,10.8231]
[1771592600359,10.8133,83.269,83.178,18.18036488]
[1771592600360,9.89921074,83.27,83.202,10.8219]
[1771592601364,10.8133,83.269,83.193,20.71169564]
[1771592601664,33.5656463,83.321,83.193,20.71169564]
[1771592601665,9.89921074,83.28,83.193,20.71169564]
[1771592601956,36.0,83.331,83.19,9.89921074]
[1771592601957,20.70971074,83.29,83.218,20.71034373]
[1771592602663,20.70971074,83.29,83.22,10.8195]
[1771592603758,9.89921074,83.29,83.21,10.8208]
[1771592603953,9.89921074,83.27,83.21,10.8208]
[1771592605265,9.89921074,83.27,83.201,20.41012728]
[1771592605657,10.8133,83.268,83.201,20.41012728]
[1771592606062,9.89921074,83.25,83.185,20.30031078]
[1771592606254,10.8159,83.248,83.185,20.30031078]
[1771592606456,10.8159,83.248,83.175,10.8254]
[1771592606656,9.89921074,83.25,83.175,10.8254]
[1771592606866,9.89921074,83.25,83.167,20.30031078]
[1771592606867,10.8162,83.246,83.167,20.30031078]
[1771592607264,9.89921074,83.25,83.174,10.8254]
[1771592607866,10.8175,83.236,83.174,10.8254]
[1771592608364,10.8186,83.228,83.167,20.30031078]
[1771592608567,10.8186,83.228,83.13,36.0]
[1771592608568,9.89921074,83.21,83.147,20.68923016]
[1771592609461,20.72011074,83.21,83.147,31.51823016]
[1771592609668,20.72011074,83.21,83.148,20.68802377]
[1771592609968,9.89921074,83.21,83.148,20.68802377]
[1771592610465,2.71421699,83.209,83.148,15.84802377]
[1771592611771,2.70814655,83.206,83.148,15.84802377]
[1771592612063,9.89921074,83.22,83.148,15.84802377]
[1771592612367,2.70033263,83.222,83.158,10.8275]
[1771592612663,2.70033263,83.222,83.148,15.84802377]
[1771592612664,5.39313432,83.239,83.159,18.18036488]
[1771592613064,5.38646921,83.237,83.169,18.18036488]
[1771592613964,5.37879304,83.235,83.174,10.8255]
[1771592614566,4.08258784,83.233,83.169,18.18036488]
[1771592615664,10.8181,83.231,83.171,10.8258]
[1771592615870,4.06869231,83.23,83.171,10.8258]
[1771592616069,4.06869231,83.23,83.172,18.18036488]
[1771592616369,10.819,83.224,83.172,18.18036488]
[1771592618162,4.04656083,83.22,83.16,10.8272]
[1771592618359,4.04656083,83.22,83.169,10.8261]
[1771592618564,3.00515792,83.276,83.14,9.89921074]
[1771592618565,10.8177,83.235,83.17,18.53500518]
[1771592619074,4.04086871,83.278,83.181,18.53500518]
[1771592619569,4.04086871,83.259,83.185,18.53500518]
[1771592619770,10.8161,83.247,83.185,18.53500518]
[1771592619970,4.04086871,83.259,83.185,18.53500518]
[1771592620568,4.04086871,83.259,83.2,18.53500518]
[1771592621768,14.85546871,83.259,83.206,10.8213]
[1771592623067,14.85546871,83.259,83.206,29.35630518]
[1771592623266,14.85546871,83.259,83.206,18.53500518]
[1771592626077,10.8138,83.264,83.206,18.53500518]
[1771592626475,3.00365996,83.263,83.206,18.53500518]
[1771592626783,3.00365996,83.262,83.206,18.53500518]
[1771592626977,10.8145,83.259,83.209,18.53500518]
[1771592627182,3.00365996,83.258,83.209,18.53500518]
[1771592627382,3.00351453,83.257,83.209,18.53500518]
[1771592627584,3.00351453,83.256,83.209,18.53500518]
[1771592627780,3.00351453,83.255,83.209,18.53500518]
[1771592628078,3.00351453,83.254,83.209,18.53500518]
[1771592628282,10.8145,83.259,83.18,9.89968508]
[1771592628283,3.00351453,83.253,83.211,18.53500518]
[1771592628578,3.00351453,83.252,83.211,18.53500518]
[1771592628882,3.00351453,83.251,83.211,18.53500518]
[1771592629083,3.00351453,83.25,83.211,18.53500518]
[1771592629381,3.00351453,83.249,83.211,18.53500518]
[1771592629583,3.00351453,83.248,83.211,18.53500518]
[1771592629775,3.00351453,83.247,83.211,18.53500518]
[1771592629980,3.00351453,83.246,83.211,18.53500518]
[1771592630177,3.00351453,83.245,83.211,18.53500518]
[1771592630478,3.00351453,83.244,83.211,18.53500518]
[1771592630683,3.00351453,83.243,83.211,18.53500518]
[1771592630878,3.00351453,83.242,83.211,18.53500518]
[1771592631181,3.00351453,83.241,83.211,18.53500518]
[1771592631389,3.00351453,83.24,83.211,18.53500518]
[1771592631574,3.00351453,83.239,83.211,18.53500518]
[1771592631779,3.00351453,83.238,83.211,18.53500518]
[1771592631983,9.02600783,83.263,83.211,18.53500518]
[1771592632182,9.02600783,83.262,83.211,18.53500518]
[1771592632485,10.8145,83.259,83.211,18.53500518]
[1771592633888,9.02419425,83.258,83.211,18.53500518]
[1771592634083,9.02419425,83.257,83.211,18.53500518]
[1771592634282,10.8145,83.259,83.211,18.53500518]
[1771592634478,9.02604847,83.258,83.211,18.53500518]
[1771592634683,9.02604847,83.257,83.211,18.53500518]
[1771592634878,10.8145,83.259,83.211,18.53500518]
[1771592635083,9.02605201,83.258,83.211,18.53500518]
[1771592635385,9.02605201,83.257,83.211,18.53500518]
[1771592635683,9.02605201,83.256,83.211,18.53500518]
[1771592635879,9.02605201,83.255,83.211,18.53500518]
[1771592636080,9.02605201,83.254,83.211,18.53500518]
[1771592636280,9.46890952,83.264,83.212,18.53500518]
[1771592636485,14.43584703,83.291,83.158,21.6551]
[1771592636486,9.46890952,83.262,83.181,18.53500518]
[1771592636786,9.46890952,83.26,83.181,18.53500518]
[1771592636982,9.46785027,83.253,83.202,29.35680518]
[1771592637179,9.03086899,83.252,83.202,29.35680518]
[1771592637487,9.03086899,83.251,83.202,29.35680518]
[1771592637681,9.03086899,83.25,83.202,29.35680518]
[1771592637882,19.84666899,83.249,83.202,29.35680518]
[1771592638182,9.03086899,83.248,83.202,29.35680518]
[1771592638388,9.03086899,83.247,83.205,18.53500518]
[1771592638587,10.8148,83.257,83.205,18.53500518]
[1771592638786,9.03519832,83.256,83.205,18.53500518]
[1771592639090,9.03519832,83.255,83.205,18.53500518]
[1771592639278,9.03519832,83.254,83.205,18.53500518]
[1771592639588,9.03519832,83.253,83.205,18.53500518]
[1771592639788,9.03519832,83.252,83.207,18.53500518]
[1771592639989,9.03519832,83.251,83.207,18.53500518]
[1771592640286,9.03519832,83.25,83.207,18.53500518]
[1771592640488,9.03519832,83.249,83.207,18.53500518]
[1771592640687,9.03519832,83.248,83.207,18.53500518]
[1771592640891,10.8151,83.254,83.207,18.53500518]
[1771592641192,9.03537001,83.253,83.207,18.53500518]
[1771592641397,9.03537001,83.252,83.207,18.53500518]
[1771592641686,9.89968508,83.27,83.207,18.53500518]
[1771592641687,9.48214574,83.247,83.207,18.53500518]
[1771592641987,9.03603652,83.246,83.194,18.53500518]
[1771592642191,9.51877616,83.244,83.194,18.53500518]
[1771592642492,9.89968508,83.25,83.194,18.53500518]
[1771592642493,9.54264384,83.242,83.194,18.53500518]
[1771592642792,9.54264384,83.24,83.194,18.53500518]
[1771592643787,9.53721757,83.238,83.194,18.53500518]
[1771592644092,9.53636572,83.236,83.194,18.53500518]
[1771592644392,9.25390932,83.234,83.194,18.53500518]
[1771592644686,3.00430003,83.233,83.194,18.53500518]
[1771592644890,3.00430003,83.232,83.194,18.53500518]
[1771592645091,3.00430003,83.231,83.194,18.53500518]
[1771592645292,10.8192,83.223,83.194,18.53500518]
[1771592645483,3.00430003,83.222,83.194,18.53500518]
[1771592645689,3.00430003,83.221,83.194,18.53500518]
[1771592645888,3.00430003,83.22,83.194,18.53500518]
[1771592646089,3.00430003,83.219,83.194,18.53500518]
[1771592646288,3.00430003,83.218,83.194,18.53500518]
[1771592646488,3.00430003,83.217,83.194,18.53500518]
[1771592646693,3.00430003,83.216,83.194,18.53500518]
[1771592646994,10.8179,83.233,83.194,18.53500518]
[1771592647295,3.00456108,83.232,83.194,18.53500518]
[1771592647594,3.00456108,83.231,83.194,18.53500518]
[1771592647893,3.00456108,83.23,83.194,18.53500518]
[1771592648094,3.00456108,83.229,83.194,18.53500518]
[1771592648394,3.00456108,83.228,83.194,18.53500518]
[1771592648598,10.8166,83.243,83.194,18.53500518]
[1771592648896,3.00416068,83.242,83.194,18.53500518]
[1771592649096,3.00416068,83.241,83.194,18.53500518]
[1771592649289,3.00416068,83.24,83.194,18.53500518]
[1771592649488,3.00416068,83.239,83.194,18.53500518]
[1771592649688,3.00416068,83.238,83.194,18.53500518]
[1771592649997,3.00422008,83.237,83.194,18.53500518]
[1771592650293,3.69754299,83.23,83.194,18.53500518]
[1771592650495,3.00422008,83.229,83.194,18.53500518]
[1771592650798,3.00422008,83.228,83.194,18.53500518]
[1771592651092,3.00422008,83.227,83.194,18.53500518]
[1771592651291,3.69754299,83.22,83.194,18.53500518]
[1771592651896,9.45037718,83.24,83.194,18.53500518]
[1771592652099,3.00445753,83.239,83.194,18.53500518]
[1771592652295,3.00445753,83.238,83.194,18.53500518]
[1771592652500,3.00445753,83.237,83.194,18.53500518]
[1771592652798,3.00445753,83.236,83.194,18.53500518]
[1771592653102,3.00445753,83.235,83.194,18.53500518]
[1771592653399,3.00445753,83.234,83.196,19.49749576]
[1771592653600,10.8155,83.251,83.196,19.49749576]
[1771592653797,9.03608869,83.258,83.211,19.49749576]
[1771592653989,9.03608869,83.266,83.211,19.49749576]
[1771592654193,9.38593807,83.267,83.211,19.49749576]
[1771592654797,10.8143,83.261,83.211,19.49749576]
[1771592655190,10.8143,83.261,83.213,10.8204]
[1771592655395,10.8143,83.261,83.214,19.49749576]
[1771592657002,12.47288313,83.244,83.196,30.32009576]
[1771592657399,12.47288313,83.244,83.197,19.49749576]
[1771592658408,12.52285444,83.242,83.197,19.49749576]
[1771592658706,12.52285444,83.24,83.197,19.49749576]
[1771592659511,23.33995444,83.24,83.197,19.49749576]
[1771592660301,9.03355252,83.239,83.197,19.49749576]
[1771592660506,12.52285444,83.24,83.197,19.49749576]
[1771592662212,8.97103196,83.239,83.197,19.49749576]
[1771592662414,12.52285444,83.24,83.197,19.49749576]
[1771592662612,8.97126757,83.239,83.197,19.49749576]
[1771592662812,12.52285444,83.24,83.199,10.8222]
[1771592663113,8.97130653,83.239,83.2,19.49749576]
[1771592663413,8.97130653,83.238,83.204,19.49749576]
[1771592663605,8.97500486,83.253,83.204,19.49749576]
[1771592663810,8.97500486,83.252,83.204,19.49749576]
[1771592664009,11.75508454,83.25,83.204,19.49749576]
[1771592664211,8.97500486,83.249,83.204,19.49749576]
[1771592664412,8.97500486,83.248,83.204,19.49749576]
[1771592664606,8.97667054,83.263,83.204,19.49749576]
[1771592664913,20.77334176,83.262,83.204,19.49749576]
[1771592665113,8.97667054,83.261,83.204,19.49749576]
[1771592665312,8.97667054,83.26,83.204,19.49749576]
[1771592665612,11.98043267,83.259,83.222,10.8192]
[1771592665809,9.90545429,83.27,83.172,21.6515]
[1771592665810,3.00376213,83.258,83.223,19.49749576]
[1771592666010,3.00376213,83.257,83.223,19.49749576]
[1771592666206,3.00376213,83.256,83.223,19.49749576]
[1771592666412,3.00376213,83.255,83.223,19.49749576]
[1771592666709,3.00376213,83.254,83.228,10.8184]
[1771592666908,3.00376213,83.253,83.228,10.8184]
[1771592667110,6.213e-05,83.252,83.223,19.49749576]
[1771592667311,8.97777201,83.268,83.223,19.49749576]
[1771592667506,8.97777201,83.267,83.223,19.49749576]
[1771592667707,8.97777201,83.266,83.223,19.49749576]
[1771592667904,8.97777201,83.265,83.223,19.49749576]
[1771592668112,8.97777201,83.264,83.223,19.49749576]
[1771592668317,9.90545429,83.27,83.223,19.49749576]
[1771592668510,8.97897721,83.269,83.223,19.49749576]
[1771592668708,8.97897721,83.268,83.223,19.49749576]
[1771592668912,8.97897721,83.267,83.223,19.49749576]
[1771592669108,11.58546829,83.264,83.21,19.49749576]
[1771592669420,11.58546829,83.262,83.21,19.49749576]
[1771592669612,22.40036829,83.256,83.21,19.49749576]
[1771592669817,11.58546829,83.254,83.21,19.49749576]
[1771592670011,8.97897721,83.253,83.21,19.49749576]
[1771592670215,11.96236284,83.249,83.189,19.49749576]
[1771592670410,11.96236284,83.247,83.189,19.49749576]
[1771592670616,11.96236284,83.245,83.189,19.49749576]
[1771592670817,11.07644488,83.269,83.12,29.65786134]
[1771592670818,11.96326408,83.225,83.165,19.49749576]
[1771592671411,8.97205995,83.229,83.165,19.49749576]
[1771592671611,8.97205995,83.228,83.175,19.49749576]
[1771592671813,8.97205995,83.238,83.175,19.49749576]
[1771592672112,12.40966496,83.244,83.175,19.49749576]
[1771592672313,8.9745464,83.243,83.175,19.49749576]
[1771592672513,8.9745464,83.242,83.175,19.49749576]
[1771592672817,8.9745464,83.241,83.175,19.49749576]
[1771592673018,8.9745464,83.24,83.175,19.49749576]
[1771592673210,8.9745464,83.239,83.185,19.49749576]
[1771592673412,8.9745464,83.238,83.185,19.49749576]
[1771592673609,8.9745464,83.237,83.185,19.49749576]
[1771592673815,8.97497519,83.242,83.187,19.49749576]
[1771592674009,8.97532542,83.251,83.187,19.49749576]
[1771592674214,12.41019888,83.258,83.187,19.49749576]
[1771592674215,8.97532542,83.25,83.187,19.49749576]
[1771592674417,8.97532542,83.257,83.199,19.49749576]
[1771592674619,8.97813016,83.261,83.199,19.49749576]
[1771592674816,10.8141,83.262,83.199,19.49749576]
[1771592675016,10.8141,83.262,83.19,9.90545429]
[1771592675017,10.8127,83.273,83.214,19.49749576]
[1771592675215,8.97823256,83.272,83.214,19.49749576]
[1771592675415,8.97823256,83.271,83.214,19.49749576]
[1771592675718,8.97823256,83.27,83.217,19.49749576]
[1771592675917,8.98049645,83.279,83.217,19.49749576]
[1771592676117,8.98049645,83.278,83.217,19.49749576]
[1771592676315,8.97982195,83.283,83.233,19.49749576]
[1771592676518,10.81,83.294,83.233,19.49749576]
[1771592677316,12.06504376,83.304,83.237,18.16821146]
[1771592677624,10.8085,83.305,83.237,18.16821146]
[1771592677925,19.55333224,83.304,83.237,18.16821146]
[1771592678720,10.8089,83.303,83.246,10.816]
[1771592678925,10.8089,83.303,83.247,18.16821146]
[1771592679124,3.00204259,83.302,83.247,18.16821146]
[1771592679324,10.8094,83.298,83.247,18.16821146]
[1771592679625,3.00204259,83.297,83.247,18.16821146]
[1771592679923,3.00204259,83.296,83.247,18.16821146]
[1771592680121,3.00204259,83.295,83.249,10.8157]
[1771592680314,3.00204259,83.294,83.247,18.16821146]
[1771592680518,3.00204259,83.293,83.247,18.16821146]
[1771592680718,3.00204259,83.292,83.247,18.16821146]
[1771592680922,3.00204259,83.291,83.247,18.16821146]
[1771592681122,3.00204259,83.29,83.247,18.16821146]
[1771592681423,19.55333224,83.304,83.247,18.16821146]
[1771592681424,3.00204259,83.289,83.247,18.16821146]
[1771592681614,3.00204259,83.288,83.247,18.16821146]
[1771592681814,3.00204259,83.287,83.247,18.16821146]
[1771592682018,3.00204259,83.286,83.247,18.16821146]
[1771592682219,19.55333224,83.304,83.247,18.16821146]
[1771592682420,3.00231701,83.303,83.247,18.16821146]
[1771592682620,3.00231701,83.302,83.247,18.16821146]
[1771592682821,3.00231701,83.301,83.249,10.8157]
[1771592683123,19.55333224,83.304,83.249,10.8157]
[1771592683124,3.00231701,83.3,83.25,18.16821146]
[1771592683423,3.00231701,83.299,83.25,18.16821146]
[1771592683623,3.00231701,83.298,83.25,18.16821146]
[1771592683821,3.00231701,83.297,83.25,18.16821146]
[1771592684013,3.00231701,83.296,83.25,18.16821146]